[Event "*** Titled Tuesday 3|2 Blitz (Early)"]
[Site "Chess.com"]
[Date "2017.01.03"]
[Round "3"]
[White "Blitzstream"]
[Black "evgenyermolaev"]
[Result "0-1"]
[WhiteElo "2508"]
[BlackElo "2397"]
[TimeControl "180+2"]
[EndTime "11:36:49 PST"]
[Termination "evgenyermolaev won by resignation"]

1. d4 {[%clk 0:03:02]} 1... Nf6 {[%clk 0:03:01]} 2. Bg5 {[%clk 0:03:02.8]} 2...
Ne4 {[%clk 0:03:01.6]} 3. Bh4 {[%clk 0:03:04.1]} 3... c5 {[%clk 0:03:02.5]} 4.
f3 {[%clk 0:03:05.4]} 4... Qa5+ {[%clk 0:03:03.6]} 5. c3 {[%clk 0:03:06.3]} 5...
Nf6 {[%clk 0:03:00]} 6. dxc5 {[%clk 0:03:03.8]} 6... Qxc5 {[%clk 0:02:59.8]} 7.
e4 {[%clk 0:03:04]} 7... Nc6 {[%clk 0:03:00.6]} 8. Nd2 {[%clk 0:03:02.9]} 8...
d6 {[%clk 0:02:59.1]} 9. Bf2 {[%clk 0:02:50.8]} 9... Qa5 {[%clk 0:02:59.1]} 10.
Ne2 {[%clk 0:02:50.9]} 10... g6 {[%clk 0:02:59.5]} 11. Nd4 {[%clk 0:02:51.3]}
11... Nxd4 {[%clk 0:03:00]} 12. Bxd4 {[%clk 0:02:33.4]} 12... Bg7 {[%clk
0:03:00.6]} 13. Be2 {[%clk 0:02:34]} 13... O-O {[%clk 0:03:01.3]} 14. O-O {[%clk
0:02:34.5]} 14... Be6 {[%clk 0:03:02.5]} 15. Bc4 {[%clk 0:02:29.8]} 15... Bxc4
{[%clk 0:02:55.4]} 16. Nxc4 {[%clk 0:02:30.5]} 16... Qb5 {[%clk 0:02:56.1]} 17.
Qb3 {[%clk 0:02:30.9]} 17... Qc6 {[%clk 0:02:50.2]} 18. a4 {[%clk 0:02:15.4]}
18... b6 {[%clk 0:02:50.4]} 19. Qb5 {[%clk 0:01:41.6]} 19... Rac8 {[%clk
0:02:44.3]} 20. Nd2 {[%clk 0:01:39.9]} 20... Nd7 {[%clk 0:02:28.9]} 21. Nb3
{[%clk 0:01:30.7]} 21... Qb7 {[%clk 0:02:19.3]} 22. Rfd1 {[%clk 0:01:22]} 22...
a6 {[%clk 0:02:07.3]} 23. Qd5 {[%clk 0:01:14.2]} 23... Qxd5 {[%clk 0:02:02.2]}
24. exd5 {[%clk 0:01:16.1]} 24... Rb8 {[%clk 0:01:45.7]} 25. Bxg7 {[%clk
0:01:12.6]} 25... Kxg7 {[%clk 0:01:43.5]} 26. Nd4 {[%clk 0:01:14.5]} 26... Nf6
{[%clk 0:01:30.9]} 27. Nc6 {[%clk 0:01:12.5]} 27... Rb7 {[%clk 0:01:32]} 28. c4
{[%clk 0:01:12.8]} 28... b5 {[%clk 0:01:29.2]} 29. cxb5 {[%clk 0:01:11.4]} 29...
axb5 {[%clk 0:01:27.5]} 30. a5 {[%clk 0:01:12.5]} 30... Ra8 {[%clk 0:01:26.2]}
31. b4 {[%clk 0:00:50.3]} 31... Ra6 {[%clk 0:01:25.4]} 32. Rac1 {[%clk
0:00:49.9]} 32... Rc7 {[%clk 0:01:22.2]} 33. Kf2 {[%clk 0:00:49.3]} 33... e6
{[%clk 0:01:19.8]} 34. Nb8 {[%clk 0:00:49.1]} 34... Rxc1 {[%clk 0:01:19.3]} 35.
Rxc1 {[%clk 0:00:51]} 35... Ra8 {[%clk 0:01:20.5]} 36. Nc6 {[%clk 0:00:40.6]}
36... Nxd5 {[%clk 0:01:18.7]} 37. a6 {[%clk 0:00:39.7]} 37... Rxa6 {[%clk
0:01:14.8]} 38. Nd8 {[%clk 0:00:36.6]} 38... Nxb4 {[%clk 0:01:11.7]} 39. Rc7
{[%clk 0:00:37.6]} 39... d5 {[%clk 0:01:00]} 40. Rxf7+ {[%clk 0:00:38.5]} 40...
Kh6 {[%clk 0:01:01]} 41. h4 {[%clk 0:00:37.7]} 41... d4 {[%clk 0:00:58.3]} 42.
g4 {[%clk 0:00:38.2]} 42... g5 {[%clk 0:00:58.3]} 43. Rf6+ {[%clk 0:00:23.5]}
43... Kg7 {[%clk 0:00:58.8]} 44. hxg5 {[%clk 0:00:25.4]} 44... Nd3+ {[%clk
0:00:55]} 45. Kg3 {[%clk 0:00:23.7]} 45... Nc5 {[%clk 0:00:52.8]} 46. Rf7+
{[%clk 0:00:20.5]} 46... Kg8 {[%clk 0:00:52.9]} 47. Rc7 {[%clk 0:00:22.1]} 47...
Rd6 {[%clk 0:00:43.5]} 48. Nf7 {[%clk 0:00:20.2]} 48... Rd5 {[%clk 0:00:44.6]}
49. Nh6+ {[%clk 0:00:21]} 49... Kf8 {[%clk 0:00:46.1]} 50. Kf2 {[%clk
0:00:17.1]} 50... d3 {[%clk 0:00:46.2]} 51. Ke1 {[%clk 0:00:18.6]} 51... d2+
{[%clk 0:00:44.8]} 52. Kd1 {[%clk 0:00:20.1]} 52... Na4 {[%clk 0:00:46.2]} 53.
Rc2 {[%clk 0:00:20.8]} 53... Rxg5 {[%clk 0:00:32.4]} 54. Kxd2 {[%clk 0:00:19]}
54... Kg7 {[%clk 0:00:32.9]} 55. Rc6 {[%clk 0:00:10.1]} 55... Kxh6 {[%clk
0:00:31.7]} 56. Rxe6+ {[%clk 0:00:11.2]} 56... Rg6 {[%clk 0:00:31.1]} 57. Ke3
{[%clk 0:00:13]} 57... Rxe6+ {[%clk 0:00:32]} 0-1

[Event "*** Titled Tuesday 3|2 Blitz (Early)"]
[Site "Chess.com"]
[Date "2017.01.03"]
[Round "3"]
[White "yian123"]
[Black "platy3"]
[Result "1-0"]
[WhiteElo "2402"]
[BlackElo "2616"]
[TimeControl "180+2"]
[EndTime "11:36:56 PST"]
[Termination "yian123 won by resignation"]

1. e4 {[%clk 0:03:01.9]} 1... c5 {[%clk 0:02:59.7]} 2. Nf3 {[%clk 0:02:58.6]}
2... e6 {[%clk 0:02:59.7]} 3. d4 {[%clk 0:02:58.6]} 3... cxd4 {[%clk 0:03:01.6]}
4. Nxd4 {[%clk 0:03:00]} 4... Nf6 {[%clk 0:03:03.3]} 5. Nc3 {[%clk 0:02:59.2]}
5... d6 {[%clk 0:03:05]} 6. Be3 {[%clk 0:02:59.5]} 6... a6 {[%clk 0:03:05.2]} 7.
Be2 {[%clk 0:02:59.9]} 7... Be7 {[%clk 0:03:05.7]} 8. g4 {[%clk 0:02:59.9]} 8...
Nc6 {[%clk 0:03:05.1]} 9. g5 {[%clk 0:02:57.9]} 9... Nd7 {[%clk 0:03:06.7]} 10.
Rg1 {[%clk 0:02:58.5]} 10... Qc7 {[%clk 0:03:07.9]} 11. f4 {[%clk 0:02:58.7]}
11... b5 {[%clk 0:03:08.6]} 12. a3 {[%clk 0:02:59.2]} 12... Bb7 {[%clk
0:03:09.5]} 13. f5 {[%clk 0:03:00.3]} 13... Nxd4 {[%clk 0:03:08.4]} 14. Qxd4
{[%clk 0:03:00.5]} 14... Ne5 {[%clk 0:03:08.3]} 15. O-O-O {[%clk 0:02:56.9]}
15... Rc8 {[%clk 0:03:06.6]} 16. Kb1 {[%clk 0:02:57.2]} 16... Bc6 {[%clk
0:02:59.5]} 17. h4 {[%clk 0:02:54.4]} 17... Qb7 {[%clk 0:02:59.9]} 18. Bf4
{[%clk 0:02:50.4]} 18... Qb8 {[%clk 0:02:33.9]} 19. Qe3 {[%clk 0:01:59]} 19...
a5 {[%clk 0:02:32.7]} 20. Na2 {[%clk 0:01:44.3]} 20... Qb7 {[%clk 0:02:28.6]}
21. Bd3 {[%clk 0:01:39.2]} 21... b4 {[%clk 0:02:27]} 22. axb4 {[%clk 0:01:37.9]}
22... axb4 {[%clk 0:02:28.9]} 23. Nc1 {[%clk 0:01:38.8]} 23... Bd8 {[%clk
0:02:23.4]} 24. Qg3 {[%clk 0:01:32.5]} 24... Bc7 {[%clk 0:02:11.8]} 25. Rde1
{[%clk 0:01:26.3]} 25... Ra8 {[%clk 0:02:05.8]} 26. Bxe5 {[%clk 0:01:23.4]}
26... dxe5 {[%clk 0:02:06.3]} 27. fxe6 {[%clk 0:01:24.4]} 27... fxe6 {[%clk
0:02:07.2]} 28. Bc4 {[%clk 0:01:24.7]} 28... Ke7 {[%clk 0:01:29.4]} 29. Qg4
{[%clk 0:01:23.1]} 29... Bd7 {[%clk 0:01:24.6]} 30. Rd1 {[%clk 0:01:20.4]} 30...
Qc6 {[%clk 0:01:24.2]} 31. Bb3 {[%clk 0:01:18]} 31... Ra5 {[%clk 0:01:20.2]} 32.
Nd3 {[%clk 0:01:12.8]} 32... Qb6 {[%clk 0:01:15.5]} 33. Nxb4 {[%clk 0:00:52.1]}
33... Rha8 {[%clk 0:00:58.8]} 34. c3 {[%clk 0:00:37]} 34... Ra1+ {[%clk
0:00:41.1]} 35. Kc2 {[%clk 0:00:31.5]} 35... Qf2+ {[%clk 0:00:43]} 36. Rd2
{[%clk 0:00:26.1]} 36... Rxg1 {[%clk 0:00:43.1]} 37. Nc6+ {[%clk 0:00:18]} 37...
Ke8 {[%clk 0:00:28]} 38. Qh5+ {[%clk 0:00:18.7]} 38... Qf7 {[%clk 0:00:09]} 39.
Qxf7+ {[%clk 0:00:19.1]} 39... Kxf7 {[%clk 0:00:10.7]} 40. Rxd7+ {[%clk
0:00:20.4]} 40... Kg6 {[%clk 0:00:11.2]} 41. Rxc7 {[%clk 0:00:21.2]} 41... Raa1
{[%clk 0:00:12]} 42. Nxe5+ {[%clk 0:00:20.3]} 42... Kh5 {[%clk 0:00:13.4]} 43.
Bc4 {[%clk 0:00:20.2]} 43... Rg2+ {[%clk 0:00:13.9]} 44. Kb3 {[%clk 0:00:20.8]}
44... Rb1 {[%clk 0:00:15.5]} 45. Nd3 {[%clk 0:00:21]} 45... Kxh4 {[%clk
0:00:16.7]} 46. Rxg7 {[%clk 0:00:21.9]} 46... Rxg5 {[%clk 0:00:17.6]} 47. Rxh7+
{[%clk 0:00:22.8]} 47... Kg3 {[%clk 0:00:19.3]} 48. Bxe6 {[%clk 0:00:23.3]}
48... Rb5+ {[%clk 0:00:19.1]} 49. Kc4 {[%clk 0:00:23.5]} 49... Rb6 {[%clk
0:00:19.6]} 50. Bd5 {[%clk 0:00:24]} 50... Kf3 {[%clk 0:00:20]} 51. Rh3+ {[%clk
0:00:24.9]} 51... Ke2 {[%clk 0:00:19.9]} 52. b4 {[%clk 0:00:25.3]} 52... Rb8
{[%clk 0:00:20.2]} 53. Nc5 {[%clk 0:00:25.3]} 53... Rc1 {[%clk 0:00:20.9]} 54.
e5 {[%clk 0:00:26.1]} 1-0

[Event "*** Titled Tuesday 3|2 Blitz (Early)"]
[Site "Chess.com"]
[Date "2017.01.03"]
[Round "3"]
[White "SidArun"]
[Black "Marreuh"]
[Result "1/2-1/2"]
[WhiteElo "2040"]
[BlackElo "2096"]
[TimeControl "180+2"]
[EndTime "11:36:59 PST"]
[Termination "Game drawn by agreement"]

1. e4 {[%clk 0:03:01.5]} 1... c5 {[%clk 0:03:00.6]} 2. c3 {[%clk 0:03:02.6]}
2... Nf6 {[%clk 0:03:00.8]} 3. e5 {[%clk 0:03:03.5]} 3... Nd5 {[%clk 0:03:02.4]}
4. d4 {[%clk 0:03:04.7]} 4... cxd4 {[%clk 0:03:04]} 5. cxd4 {[%clk 0:03:05.5]}
5... d6 {[%clk 0:03:00.8]} 6. Nf3 {[%clk 0:03:05.1]} 6... e6 {[%clk 0:03:00.2]}
7. Nc3 {[%clk 0:03:05.3]} 7... Nxc3 {[%clk 0:03:00]} 8. bxc3 {[%clk 0:03:06.4]}
8... dxe5 {[%clk 0:03:00.2]} 9. Nxe5 {[%clk 0:03:07.1]} 9... Qc7 {[%clk
0:03:00.8]} 10. Bd2 {[%clk 0:03:07.6]} 10... Nc6 {[%clk 0:02:56.1]} 11. Bb5
{[%clk 0:03:05.9]} 11... Bd7 {[%clk 0:02:53.9]} 12. Nxd7 {[%clk 0:03:03.8]}
12... Qxd7 {[%clk 0:02:53.4]} 13. Qf3 {[%clk 0:03:03.4]} 13... Rc8 {[%clk
0:02:42]} 14. Qg4 {[%clk 0:03:01.7]} 14... a6 {[%clk 0:02:25.4]} 15. Ba4 {[%clk
0:02:59.8]} 15... b5 {[%clk 0:02:04.6]} 16. Bc2 {[%clk 0:02:59.7]} 16... Na5
{[%clk 0:01:55.2]} 17. a4 {[%clk 0:02:47.5]} 17... Nc4 {[%clk 0:01:50.5]} 18.
axb5 {[%clk 0:02:48.4]} 18... axb5 {[%clk 0:01:50.1]} 19. Qe4 {[%clk 0:02:27.2]}
19... Qd5 {[%clk 0:01:37.6]} 20. Qxd5 {[%clk 0:02:21.6]} 20... exd5 {[%clk
0:01:39.5]} 21. Ra7 {[%clk 0:02:22.1]} 21... Bd6 {[%clk 0:01:29]} 22. Bf5 {[%clk
0:02:13.9]} 22... Rb8 {[%clk 0:01:22.1]} 23. Rd7 {[%clk 0:02:01.3]} 23... O-O
{[%clk 0:01:16.3]} 24. Kd1 {[%clk 0:01:52.6]} 24... Ra8 {[%clk 0:01:13.1]} 25.
Bd3 {[%clk 0:01:23.4]} 25... Ra1+ {[%clk 0:01:11]} 26. Bc1 {[%clk 0:01:24.3]}
26... Bf4 {[%clk 0:00:39.1]} 27. Kc2 {[%clk 0:01:24.8]} 27... Rfa8 {[%clk
0:00:38.6]} 28. Bxc4 {[%clk 0:01:10.8]} 28... bxc4 {[%clk 0:00:36.3]} 29. Rb7
{[%clk 0:01:02.8]} 29... Re8 {[%clk 0:00:26.4]} 30. Rd1 {[%clk 0:00:34]} 30...
Bxc1 {[%clk 0:00:20.9]} 31. Rxc1 {[%clk 0:00:33.9]} 31... Re2+ {[%clk
0:00:19.7]} 32. Kd1 {[%clk 0:00:33.6]} 32... Rxc1+ {[%clk 0:00:18.9]} 33. Kxc1
{[%clk 0:00:27.8]} 33... h6 {[%clk 0:00:18.9]} 34. Rb2 {[%clk 0:00:28.6]} 34...
Re1+ {[%clk 0:00:18.7]} 35. Kd2 {[%clk 0:00:29.2]} 35... Re6 {[%clk 0:00:18.5]}
36. Rb5 {[%clk 0:00:29.4]} 36... Rd6 {[%clk 0:00:19.8]} 37. Ke3 {[%clk
0:00:30.6]} 37... Kf8 {[%clk 0:00:21]} 38. Kf4 {[%clk 0:00:30.9]} 38... Ke7
{[%clk 0:00:22.3]} 39. Rb7+ {[%clk 0:00:32.1]} 39... Kf6 {[%clk 0:00:22.9]} 40.
g4 {[%clk 0:00:32]} 40... Ra6 {[%clk 0:00:22.6]} 41. Rb2 {[%clk 0:00:28.9]}
41... g5+ {[%clk 0:00:22.1]} 42. Kf3 {[%clk 0:00:29.5]} 42... Ra3 {[%clk
0:00:22.6]} 43. Rc2 {[%clk 0:00:31]} 43... Ke6 {[%clk 0:00:23.4]} 44. Ke3 {[%clk
0:00:32.4]} 44... f5 {[%clk 0:00:24.7]} 45. h3 {[%clk 0:00:33.5]} 45... fxg4
{[%clk 0:00:24.8]} 46. hxg4 {[%clk 0:00:34.3]} 46... Ra1 {[%clk 0:00:26]} 47.
Kf3 {[%clk 0:00:35.4]} 47... Rg1 {[%clk 0:00:22.6]} 48. Re2+ {[%clk 0:00:36.3]}
48... Kf6 {[%clk 0:00:23.1]} 49. Re5 {[%clk 0:00:37.2]} 49... Rh1 {[%clk
0:00:23.6]} 50. Kg2 {[%clk 0:00:35.6]} 50... Rc1 {[%clk 0:00:24.2]} 51. Rxd5
{[%clk 0:00:35.1]} 51... Rxc3 {[%clk 0:00:25.2]} 52. Rc5 {[%clk 0:00:36.5]}
52... Rc1 {[%clk 0:00:24.8]} 53. Rc6+ {[%clk 0:00:36.1]} 53... Ke7 {[%clk
0:00:23.6]} 54. d5 {[%clk 0:00:37.5]} 54... c3 {[%clk 0:00:24.4]} 55. Kf3 {[%clk
0:00:35.2]} 55... c2 {[%clk 0:00:25.1]} 56. Kg2 {[%clk 0:00:30.8]} 56... Kd7
{[%clk 0:00:22.6]} 57. Kf3 {[%clk 0:00:31.3]} 57... Ke7 {[%clk 0:00:19.3]} 58.
Kg2 {[%clk 0:00:30.3]} 58... Rd1 {[%clk 0:00:20.5]} 59. Rxc2 {[%clk 0:00:30.8]}
59... Rxd5 {[%clk 0:00:21.6]} 60. Kg3 {[%clk 0:00:29.7]} 60... Kf6 {[%clk
0:00:21.7]} 61. Rc6+ {[%clk 0:00:30.1]} 61... Kg7 {[%clk 0:00:23]} 62. Re6
{[%clk 0:00:28.5]} 62... Ra5 {[%clk 0:00:23.4]} 1/2-1/2

[Event "*** Titled Tuesday 3|2 Blitz (Early)"]
[Site "Chess.com"]
[Date "2017.01.03"]
[Round "3"]
[White "alturas_pacificas"]
[Black "hsskoo"]
[Result "1-0"]
[WhiteElo "2038"]
[BlackElo "1912"]
[TimeControl "180+2"]
[EndTime "11:37:01 PST"]
[Termination "alturas_pacificas won on time"]

1. d4 {[%clk 0:03:01.1]} 1... e6 {[%clk 0:02:52.7]} 2. Bf4 {[%clk 0:03:01.1]}
2... Nf6 {[%clk 0:02:51.3]} 3. e3 {[%clk 0:03:00.2]} 3... b6 {[%clk 0:02:39.1]}
4. c4 {[%clk 0:02:54.7]} 4... Bb7 {[%clk 0:02:37.3]} 5. Nc3 {[%clk 0:02:55.3]}
5... Ne4 {[%clk 0:02:21.7]} 6. Nge2 {[%clk 0:02:30.3]} 6... Be7 {[%clk
0:02:19.6]} 7. Nxe4 {[%clk 0:02:27.1]} 7... Bxe4 {[%clk 0:02:19.5]} 8. Nc3
{[%clk 0:02:28.1]} 8... Bg6 {[%clk 0:02:19.2]} 9. Be2 {[%clk 0:02:08.6]} 9... d6
{[%clk 0:02:19.3]} 10. Bf3 {[%clk 0:02:07.3]} 10... Nd7 {[%clk 0:02:17.5]} 11.
Bxa8 {[%clk 0:02:05.2]} 11... Qxa8 {[%clk 0:02:15.5]} 12. O-O {[%clk 0:02:05.3]}
12... O-O {[%clk 0:02:14.7]} 13. Qf3 {[%clk 0:02:03.4]} 13... Qc8 {[%clk
0:02:13.1]} 14. Rac1 {[%clk 0:02:03.9]} 14... c5 {[%clk 0:02:12.7]} 15. Nb5
{[%clk 0:01:58.5]} 15... Qb8 {[%clk 0:02:06.6]} 16. Qc6 {[%clk 0:01:40.4]} 16...
Nf6 {[%clk 0:02:01]} 17. Bxd6 {[%clk 0:01:26.2]} 17... Bxd6 {[%clk 0:01:55]} 18.
Qxd6 {[%clk 0:01:25]} 18... Qb7 {[%clk 0:01:48.8]} 19. dxc5 {[%clk 0:01:22.6]}
19... bxc5 {[%clk 0:01:46.9]} 20. Qc7 {[%clk 0:01:20.7]} 20... Qe4 {[%clk
0:01:42.6]} 21. Qxc5 {[%clk 0:01:07.2]} 21... Qh4 {[%clk 0:01:36.5]} 22. Qd4
{[%clk 0:01:00.3]} 22... Qh5 {[%clk 0:01:33.6]} 23. h3 {[%clk 0:00:56.2]} 23...
Be4 {[%clk 0:01:31.3]} 24. Nd6 {[%clk 0:00:46.8]} 24... Bc6 {[%clk 0:01:23.9]}
25. b4 {[%clk 0:00:45.3]} 25... Qg5 {[%clk 0:01:21.2]} 26. f3 {[%clk 0:00:40.8]}
26... e5 {[%clk 0:01:16.5]} 27. Qd2 {[%clk 0:00:38.3]} 27... Rd8 {[%clk
0:01:10.8]} 28. c5 {[%clk 0:00:38.6]} 28... Nd5 {[%clk 0:00:56.7]} 29. b5 {[%clk
0:00:32.6]} 29... Ba8 {[%clk 0:00:52.9]} 30. Rfe1 {[%clk 0:00:29.4]} 30... f5
{[%clk 0:00:38.4]} 31. c6 {[%clk 0:00:17.2]} 31... Rxd6 {[%clk 0:00:32.2]} 32.
c7 {[%clk 0:00:18.5]} 32... Bb7 {[%clk 0:00:30.5]} 33. c8=Q+ {[%clk 0:00:19.4]}
33... Bxc8 {[%clk 0:00:25.7]} 34. Rxc8+ {[%clk 0:00:21.3]} 34... Kf7 {[%clk
0:00:26.3]} 35. Rc6 {[%clk 0:00:18]} 35... Rd7 {[%clk 0:00:14.5]} 36. Rd1 {[%clk
0:00:17]} 36... f4 {[%clk 0:00:13.7]} 37. e4 {[%clk 0:00:15.7]} 37... Nb6 {[%clk
0:00:06.5]} 38. Qxd7+ {[%clk 0:00:14.9]} 38... Nxd7 {[%clk 0:00:02.3]} 39. Rxd7+
{[%clk 0:00:16.8]} 39... Ke8 {[%clk 0:00:03.2]} 40. Rxa7 {[%clk 0:00:17.3]}
40... Qd8 {[%clk 0:00:03.2]} 41. Rxg7 {[%clk 0:00:09.8]} 41... Qd4+ {[%clk
0:00:02.2]} 42. Kh2 {[%clk 0:00:10.7]} 1-0

[Event "*** Titled Tuesday 3|2 Blitz (Early)"]
[Site "Chess.com"]
[Date "2017.01.03"]
[Round "3"]
[White "1e41-0"]
[Black "Mazetovic"]
[Result "0-1"]
[WhiteElo "2311"]
[BlackElo "2464"]
[TimeControl "180+2"]
[EndTime "11:37:13 PST"]
[Termination "Mazetovic won by resignation"]

1. e4 {[%clk 0:03:02]} 1... c5 {[%clk 0:03:00.2]} 2. Nf3 {[%clk 0:03:02.4]} 2...
Nc6 {[%clk 0:02:58.4]} 3. d4 {[%clk 0:03:03.5]} 3... cxd4 {[%clk 0:02:50.4]} 4.
Nxd4 {[%clk 0:03:05.4]} 4... g6 {[%clk 0:02:51.5]} 5. Nc3 {[%clk 0:02:57.4]}
5... Bg7 {[%clk 0:02:52]} 6. Be3 {[%clk 0:02:57]} 6... Nf6 {[%clk 0:02:44.5]} 7.
Bc4 {[%clk 0:02:47.3]} 7... Qa5 {[%clk 0:02:45.2]} 8. Nb3 {[%clk 0:02:37.7]}
8... Qc7 {[%clk 0:02:42.3]} 9. Bd3 {[%clk 0:02:34.1]} 9... a6 {[%clk 0:02:28.3]}
10. O-O {[%clk 0:02:34.3]} 10... O-O {[%clk 0:02:27.4]} 11. Nd5 {[%clk
0:02:30.3]} 11... Nxd5 {[%clk 0:02:20.2]} 12. exd5 {[%clk 0:02:32.2]} 12... Ne5
{[%clk 0:02:18.2]} 13. Bd4 {[%clk 0:02:27.8]} 13... d6 {[%clk 0:02:17.4]} 14. h3
{[%clk 0:02:20.9]} 14... Nxd3 {[%clk 0:02:15.9]} 15. Qxd3 {[%clk 0:02:22.8]}
15... Bf5 {[%clk 0:02:07.4]} 16. Qe3 {[%clk 0:02:04.8]} 16... Qxc2 {[%clk
0:02:04.5]} 17. Qxe7 {[%clk 0:01:54.8]} 17... Qe4 {[%clk 0:01:44.1]} 18. Qxe4
{[%clk 0:01:39.3]} 18... Bxe4 {[%clk 0:01:44.3]} 19. Bxg7 {[%clk 0:01:41]} 19...
Kxg7 {[%clk 0:01:35.5]} 20. Rfd1 {[%clk 0:01:13.5]} 20... Rac8 {[%clk
0:01:25.4]} 21. f3 {[%clk 0:01:12.6]} 21... Bc2 {[%clk 0:01:23.1]} 22. Rd2
{[%clk 0:01:13.5]} 22... Bxb3 {[%clk 0:01:23.8]} 23. axb3 {[%clk 0:01:15.4]}
23... Rc5 {[%clk 0:01:24.7]} 24. Kf1 {[%clk 0:01:00.7]} 24... Rfc8 {[%clk
0:01:23.3]} 25. Re1 {[%clk 0:01:01.6]} 25... Kf8 {[%clk 0:01:21.6]} 26. b4
{[%clk 0:00:57.5]} 26... Rc4 {[%clk 0:01:20.1]} 27. Re4 {[%clk 0:00:56.5]} 27...
Rxe4 {[%clk 0:01:20.7]} 28. fxe4 {[%clk 0:00:58.4]} 28... Rc4 {[%clk 0:01:21.3]}
29. b5 {[%clk 0:00:49.7]} 29... axb5 {[%clk 0:01:17.7]} 30. Re2 {[%clk
0:00:51.2]} 30... f6 {[%clk 0:01:02.9]} 31. Kf2 {[%clk 0:00:50.6]} 31... Ke7
{[%clk 0:00:58.1]} 32. Kf3 {[%clk 0:00:51.7]} 32... Rb4 {[%clk 0:00:57.8]} 33.
g4 {[%clk 0:00:47]} 33... Rb3+ {[%clk 0:00:58.7]} 34. Kg2 {[%clk 0:00:47.9]}
34... Rd3 {[%clk 0:00:53.5]} 35. Rc2 {[%clk 0:00:47.1]} 35... Kd7 {[%clk
0:00:53.3]} 36. Rf2 {[%clk 0:00:48.7]} 36... Rb3 {[%clk 0:00:48]} 37. Rxf6
{[%clk 0:00:47.6]} 37... Rxb2+ {[%clk 0:00:49]} 38. Kg3 {[%clk 0:00:49.1]} 38...
b4 {[%clk 0:00:49.3]} 39. Rf7+ {[%clk 0:00:50]} 39... Kc8 {[%clk 0:00:50.3]} 40.
Rxh7 {[%clk 0:00:50.9]} 40... Rc2 {[%clk 0:00:48.5]} 41. Rh8+ {[%clk 0:00:42.7]}
41... Kc7 {[%clk 0:00:48.9]} 42. Ra8 {[%clk 0:00:44.3]} 42... g5 {[%clk
0:00:45.1]} 43. Ra4 {[%clk 0:00:39.8]} 43... Rc3+ {[%clk 0:00:45.3]} 44. Kg2
{[%clk 0:00:40]} 44... Rb3 {[%clk 0:00:45.9]} 45. h4 {[%clk 0:00:28.7]} 45...
gxh4 {[%clk 0:00:45.5]} 46. g5 {[%clk 0:00:30]} 46... Rg3+ {[%clk 0:00:45.4]}
47. Kh2 {[%clk 0:00:30.9]} 47... b3 {[%clk 0:00:46.5]} 48. Rb4 {[%clk
0:00:32.1]} 48... Rxg5 {[%clk 0:00:44.7]} 49. Rxb3 {[%clk 0:00:33.4]} 49... Rg4
{[%clk 0:00:43.4]} 50. Rb4 {[%clk 0:00:34.2]} 50... Rg3 {[%clk 0:00:41.9]} 51.
Kh1 {[%clk 0:00:26.8]} 51... Rc3 {[%clk 0:00:37.8]} 52. Kh2 {[%clk 0:00:27.2]}
52... b6 {[%clk 0:00:36]} 53. Kh1 {[%clk 0:00:27]} 53... Kb7 {[%clk 0:00:36.8]}
54. Kh2 {[%clk 0:00:27.6]} 54... Ka6 {[%clk 0:00:36.8]} 55. Ra4+ {[%clk
0:00:29.2]} 55... Kb5 {[%clk 0:00:36.9]} 56. Ra7 {[%clk 0:00:30]} 56... Re3
{[%clk 0:00:33.9]} 57. Re7 {[%clk 0:00:29.2]} 57... Kc5 {[%clk 0:00:33.5]} 58.
Re6 {[%clk 0:00:30.3]} 58... b5 {[%clk 0:00:33.8]} 59. Re8 {[%clk 0:00:31.9]}
59... b4 {[%clk 0:00:34.6]} 60. Rc8+ {[%clk 0:00:32.5]} 60... Kd4 {[%clk
0:00:35.6]} 61. Rb8 {[%clk 0:00:33.1]} 61... b3 {[%clk 0:00:36.2]} 62. Rb4+
{[%clk 0:00:33.2]} 62... Kc3 {[%clk 0:00:34.5]} 63. Rb6 {[%clk 0:00:26.4]} 63...
b2 {[%clk 0:00:34.9]} 64. Rc6+ {[%clk 0:00:26.2]} 64... Kd2 {[%clk 0:00:35.6]}
65. Rb6 {[%clk 0:00:26.6]} 65... Kc2 {[%clk 0:00:36.4]} 66. Rc6+ {[%clk
0:00:27.4]} 66... Rc3 {[%clk 0:00:38]} 67. Rb6 {[%clk 0:00:26]} 67... b1=Q
{[%clk 0:00:36.9]} 68. Rxb1 {[%clk 0:00:27.4]} 68... Kxb1 {[%clk 0:00:38]} 0-1